bitfinex-derivatives/quotes_SOLF0:USTF0_20240924
["timestamp","ask_amount","ask_price","bid_price","bid_amount"]
[1727184060762,11.53528988,147.56,147.54,9.37]
[1727184061350,11.53528988,147.56,147.5,96.75487736]
[1727184061351,11.53528988,147.56,147.5,91.99630493]
[1727184061655,1.3771,147.54,147.51,7.2178]
[1727184061858,1.3771,147.54,147.4,1.4231]
[1727184062158,1.3771,147.54,147.53,9.37]
[1727184062958,4.7658,147.54,147.53,9.37]
[1727184063161,1.3771,147.54,147.4,4.7511284]
[1727184063348,10.7471,147.54,147.49,9.37]
[1727184063556,3.3896,147.51,147.49,9.37]
[1727184063960,10.7471,147.54,147.5,9.37]
[1727184063961,3.3891,147.53,147.5,9.37]
[1727184064154,3.3891,147.53,147.4,4.7511284]
[1727184064155,3.3891,147.53,147.52,9.37]
[1727184065966,1.3771,147.54,147.52,9.37]
[1727184066861,3.3889,147.53,147.52,9.37]
[1727184067751,3.3894,147.52,147.5,9.37]
[1727184068459,3.3894,147.52,147.48,3.36430218]
[1727184068664,3.3894,147.52,147.51,9.37]
[1727184070357,3.3894,147.51,147.48,3.3899]
[1727184070556,3.3894,147.51,147.5,9.37]
[1727184073176,1.3771,147.54,147.43,1.3156]
[1727184073468,1.3771,147.54,147.47,9.37]
[1727184073469,9.37,147.51,147.47,9.37]
[1727184073668,3.3902,147.48,147.47,9.37]
[1727184074066,9.37,147.51,147.47,9.37]
[1727184074267,1.3771,147.54,147.48,9.37]
[1727184074268,3.3899,147.49,147.48,9.37]
[1727184074657,3.3897,147.5,147.48,9.37]
[1727184074863,3.3897,147.5,147.49,9.37]
[1727184075468,9.37,147.53,147.48,9.37]
[1727184075859,9.37,147.49,147.39,4.9323345]
[1727184076061,9.37,147.49,147.32,3.37893028]
[1727184076062,1.3286,147.52,147.4,9.37]
[1727184076263,9.37,147.45,147.4,9.37]
[1727184076665,3.3915,147.42,147.4,9.37]
[1727184076962,1.41,147.44,147.35,2.7083]
[1727184077264,3.392,147.4,147.38,9.37]
[1727184077463,9.37,147.43,147.38,9.37]
[1727184078467,1.41,147.44,147.39,14.66]
[1727184078965,1.41,147.44,147.39,18.052]
[1727184080968,3.3915,147.42,147.39,18.052]
[1727184084860,3.3917,147.41,147.38,3.3923]
[1727184085879,3.3919,147.4,147.37,3.3925]
[1727184089477,1.41,147.44,147.38,14.66]
[1727184090772,16.07,147.44,147.35,14.66]
[1727184091177,3.3921,147.4,147.37,3.3926]
[1727184095689,3.3919,147.41,147.38,3.3922]
[1727184096996,3.3914,147.43,147.37,14.66]
[1727184097185,1.41,147.44,147.37,14.66]
[1727184097499,1.41,147.44,147.39,14.66]
[1727184097687,3.3915,147.42,147.39,18.052]
[1727184098987,3.3915,147.42,147.39,3.392]
[1727184100294,3.3915,147.42,147.39,12.772]
[1727184100785,3.3915,147.42,147.4,3.3919]
[1727184102585,3.3915,147.42,147.39,12.772]
[1727184102792,1.41,147.44,147.38,9.38]
[1727184103091,9.38,147.42,147.38,12.7722]
[1727184103393,3.3918,147.41,147.38,12.7722]
[1727184103893,1.41,147.44,147.39,9.38]
[1727184104096,10.79,147.44,147.39,9.38]
[1727184104895,3.3915,147.42,147.4,3.3918]
[1727184106698,3.3915,147.42,147.4,12.7718]
[1727184106897,3.3914,147.43,147.4,12.7718]
[1727184112704,3.3915,147.42,147.4,12.7718]
[1727184116304,3.3913,147.43,147.4,12.7718]
[1727184116498,9.38,147.44,147.4,12.7718]
[1727184117104,3.3913,147.43,147.41,3.3915]
[1727184117594,3.3911,147.44,147.42,3.3914]
[1727184117794,58.91016422,147.47,147.43,9.38]
[1727184117999,9.38,147.52,147.46,9.38]
[1727184118200,1.406,147.53,147.48,9.38]
[1727184118509,9.38,147.52,147.48,9.38]
[1727184119009,3.3897,147.5,147.48,9.38]
[1727184120306,3.3898,147.49,147.48,9.38]
[1727184121014,3.3906,147.46,147.44,9.38]
[1727184121309,9.38,147.5,147.45,12.7706]
[1727184121509,9.38,147.5,147.45,9.38]
[1727184121701,9.38,147.5,147.41,1.3842]
[1727184121702,9.38,147.51,147.46,9.38]
[1727184122106,3.3899,147.49,147.46,9.38]
[1727184124003,3.3899,147.49,147.47,3.3903]
[1727184124611,9.38,147.54,147.48,9.38]
[1727184124808,9.38,147.54,147.5,9.38]
[1727184125306,3.3893,147.52,147.5,9.38]
[1727184126809,3.3893,147.52,147.5,12.7695]
[1727184127009,3.3891,147.53,147.5,9.38]
[1727184127400,3.3891,147.53,147.51,9.38]
[1727184128813,3.3889,147.54,147.51,12.7694]
[1727184129015,10.16806921,147.55,147.51,12.7694]
[1727184129213,0.78806921,147.55,147.51,12.7694]
[1727184129711,0.78806921,147.55,147.51,9.38]
[1727184130617,3.3889,147.53,147.51,9.38]
[1727184131515,3.3888,147.54,147.51,12.7694]
[1727184132614,3.3888,147.54,147.52,3.3891]
[1727184132812,3.3888,147.54,147.52,9.38]
[1727184134024,0.78806921,147.55,147.54,3.3887]
[1727184134209,0.78806921,147.55,147.54,12.7687]
[1727184134404,11.53528988,147.56,147.54,12.7687]
[1727184134405,11.53528988,147.56,147.54,9.38]
[1727184134609,11.53528988,147.56,147.55,12.7685]
[1727184135212,11.53528988,147.56,147.55,3.3885]
[1727184135416,11.53528988,147.56,147.55,12.7685]
[1727184135720,11.53528988,147.56,147.55,3.3885]
[1727184135910,11.53528988,147.56,147.55,12.7685]
[1727184141823,11.53528988,147.56,147.49,1.3799]
[1727184142022,14.92358988,147.56,147.49,4.78757353]
[1727184142223,14.92358988,147.56,147.54,9.38]
[1727184142928,11.53528988,147.56,147.54,9.38]
[1727184143119,11.53528988,147.56,147.54,12.7686]
[1727184143323,11.53528988,147.56,147.54,3.3886]
[1727184143527,14.92368988,147.56,147.49,1.3799]
[1727184143731,11.53528988,147.56,147.53,9.38]
[1727184143926,9.38,147.55,147.49,1.3799]
[1727184144226,3.389,147.53,147.5,12.7695]
[1727184144620,3.389,147.53,147.5,9.38]
[1727184145022,3.3888,147.54,147.51,3.3894]
[1727184147223,3.3888,147.54,147.51,12.7694]
[1727184150423,3.3885,147.55,147.52,3.389]
[1727184150924,3.3895,147.51,147.49,9.38]
[1727184151530,9.38,147.53,147.49,9.38]
[1727184151830,9.38,147.53,147.47,1.3495]
[1727184151831,9.38,147.55,147.5,9.38]
[1727184152327,3.3891,147.53,147.5,12.7695]
[1727184155936,3.3891,147.53,147.51,3.3894]
[1727184161135,3.3891,147.53,147.51,12.7694]
[1727184164241,3.3888,147.54,147.52,3.3891]
[1727184165140,20.91528988,147.56,147.53,3.3889]
[1727184165141,3.3885,147.55,147.53,3.3889]
[1727184165638,14.92368988,147.56,147.53,3.3889]
[1727184165837,11.53528988,147.56,147.54,12.7687]
[1727184166036,11.53528988,147.56,147.55,9.38]
[1727184166945,11.53528988,147.56,147.55,12.7685]
[1727184169844,11.53528988,147.56,147.55,3.3885]
[1727184170037,11.53528988,147.56,147.55,12.7685]
[1727184173649,11.53528988,147.56,147.47,4.1502]
[1727184173947,9.38,147.53,147.47,4.1502]
[1727184174142,9.38,147.53,147.47,13.5302]
[1727184174546,3.3895,147.51,147.48,3.3899]
[1727184174850,3.3895,147.51,147.47,13.5302]
[1727184175749,3.3895,147.51,147.49,3.3898]
[1727184178657,3.3893,147.52,147.49,3.3898]
[1727184180357,3.3894,147.51,147.48,3.39]
[1727184181151,3.3898,147.49,147.47,9.38]
[1727184181366,9.38,147.5,147.45,9.38]
[1727184181547,4.72848561,147.55,147.45,9.38]
[1727184181548,9.38,147.49,147.45,9.38]
[1727184181749,3.3903,147.48,147.45,3.3907]
[1727184181949,9.38,147.49,147.44,9.38]
[1727184182263,3.3905,147.47,147.44,12.7709]
[1727184182558,9.38,147.49,147.44,12.7709]
[1727184182758,3.3902,147.48,147.45,3.3907]
[1727184182954,3.3902,147.48,147.45,9.38]
[1727184183159,9.38,147.5,147.45,9.38]
[1727184183660,3.39,147.49,147.46,3.3905]
[1727184183849,4.72848561,147.55,147.47,9.38]
[1727184184053,4.72848561,147.55,147.43,1.3666]
[1727184184054,3.3893,147.52,147.49,9.38]
[1727184184351,10.6879,147.55,147.49,9.38]
[1727184184954,3.3893,147.52,147.49,12.7697]
[1727184189266,3.3893,147.52,147.5,3.3896]
[1727184190163,3.389,147.53,147.5,3.3896]
[1727184190465,9.38,147.53,147.46,4.95375498]
[1727184190664,9.38,147.52,147.47,9.38]
[1727184190968,3.3896,147.5,147.47,9.38]
[1727184191368,3.3896,147.5,147.47,12.7702]
[1727184191565,3.3896,147.5,147.47,9.38]
[1727184192369,9.38,147.54,147.48,9.38]
[1727184192868,3.3893,147.52,147.49,3.3897]
[1727184194469,1.3079,147.55,147.51,3.3894]
[1727184194673,10.6879,147.55,147.51,3.3894]
[1727184195066,79.78315305,147.56,147.51,9.38]
[1727184196167,79.78315305,147.56,147.52,3.389]
[1727184196168,3.3885,147.55,147.52,3.389]
[1727184196866,9.38,147.55,147.44,8.1503]
[1727184197170,9.38,147.54,147.49,9.38]
[1727184197672,73.79481113,147.56,147.45,4.95741154]
[1727184197872,9.38,147.47,147.46,4.95741154]
[1727184198075,9.38,147.47,147.42,10.7663]
[1727184198471,12.7704,147.47,147.44,3.391]
[1727184200180,3.3902,147.48,147.45,3.3907]
[1727184200974,3.3903,147.47,147.44,12.7709]
[1727184201674,3.3901,147.48,147.45,3.3907]
[1727184202270,9.38,147.48,147.42,1.3863]
[1727184202474,9.38,147.48,147.42,9.38]
[1727184203076,3.3905,147.46,147.43,3.3911]
[1727184204590,3.3904,147.47,147.44,3.391]
[1727184205091,9.38,147.49,147.44,9.38]
[1727184205388,3.3902,147.48,147.45,3.3907]
[1727184208992,9.38,147.47,147.41,1.4329]
[1727184209187,9.38,147.45,147.41,1.4329]
[1727184209590,12.7709,147.45,147.42,3.3913]
[1727184210089,9.38,147.45,147.41,1.4329]
[1727184210292,9.38,147.45,147.41,10.8129]
[1727184210995,9.38,147.45,147.44,3.391]
[1727184212095,9.38,147.45,147.43,3.3911]
[1727184212990,9.38,147.46,147.41,10.8129]
[1727184213199,12.7702,147.48,147.45,3.3907]
[1727184213492,9.38,147.48,147.45,3.3907]
[1727184214093,3.3905,147.47,147.44,3.3909]
[1727184220197,3.3905,147.46,147.44,3.3909]
[1727184220701,9.38,147.48,147.44,3.3909]
[1727184220904,9.38,147.46,147.44,3.3909]
[1727184222096,12.7705,147.46,147.44,3.3909]
[1727184223506,9.38,147.45,147.39,4.95175948]
[1727184223706,9.38,147.42,147.38,1.3867]
[1727184223908,12.7715,147.42,147.39,3.392]
[1727184224705,12.7715,147.42,147.4,3.3919]
[1727184226303,12.7715,147.42,147.39,3.392]
[1727184226998,12.7713,147.43,147.39,9.38]
[1727184227604,9.38,147.43,147.39,9.38]
[1727184228004,9.38,147.46,147.41,9.38]
[1727184228205,3.3909,147.45,147.42,3.3913]
[1727184228406,9.38,147.46,147.42,3.3913]
[1727184229102,1.4081,147.5,147.42,3.3913]
[1727184229103,3.3911,147.44,147.42,3.3913]
[1727184230010,3.3911,147.44,147.41,3.3916]
[1727184231310,9.38,147.43,147.38,1.3867]
[1727184231510,9.38,147.43,147.38,10.7667]
[1727184232712,3.3916,147.42,147.39,3.392]
[1727184234218,9.38,147.4,147.35,4.94572209]
[1727184234418,9.38,147.36,147.3,3.9968]
[1727184234915,9.38,147.35,147.33,3.3935]
[1727184235814,1.3593,147.41,147.34,3.3933]
[1727184235815,12.7727,147.37,147.34,3.3933]
[1727184236415,3.3927,147.37,147.34,3.3933]
[1727184236616,3.3925,147.38,147.34,3.3933]
[1727184242120,3.3925,147.38,147.35,3.393]
[1727184243425,15.9802,147.42,147.33,14.67]
[1727184243818,15.9802,147.42,147.3,3.9968]
[1727184243819,15.9802,147.42,147.32,14.67]
[1727184244022,3.3925,147.38,147.35,3.3931]
[1727184244430,14.67,147.4,147.32,14.67]
[1727184245134,18.062,147.4,147.37,3.3925]
[1727184246441,3.3921,147.39,147.37,3.3925]
[1727184257037,3.392,147.4,147.37,3.3925]
[1727184257741,3.392,147.4,147.38,3.3923]
[1727184258036,3.3918,147.41,147.35,18.7635]
[1727184258347,14.67,147.44,147.39,9.38]
[1727184258348,9.38,147.44,147.39,9.38]
[1727184258535,9.38,147.45,147.4,9.38]
[1727184259138,3.3911,147.44,147.41,3.3916]
[1727184260340,9.5164,147.53,147.42,9.38]
[1727184260536,9.38,147.49,147.44,9.38]
[1727184261933,9.38,147.48,147.43,1.3303]
[1727184262242,9.38,147.48,147.43,10.7103]
[1727184262444,3.3903,147.47,147.45,3.3907]
[1727184262640,9.38,147.49,147.45,3.3907]
[1727184263234,3.3903,147.47,147.45,3.3907]
[1727184267246,3.39,147.49,147.47,3.3903]
[1727184273446,9.38,147.49,147.43,2.7103]
[1727184273648,9.38,147.49,147.44,9.38]
[1727184273852,9.38,147.49,147.43,2.7103]
[1727184273853,9.38,147.49,147.45,9.38]
[1727184274052,3.3902,147.48,147.46,3.3904]
[1727184274550,9.38,147.49,147.46,3.3904]
[1727184274853,12.77,147.49,147.46,3.3904]
[1727184277447,3.3901,147.48,147.46,3.3904]
[1727184278354,10.7456,147.52,147.47,9.38]
[1727184278651,9.38,147.53,147.48,9.38]
[1727184279646,9.38,147.52,147.48,9.38]
[1727184279853,3.3896,147.5,147.48,12.77]
[1727184280459,3.3896,147.5,147.48,3.39]
[1727184281548,3.3896,147.5,147.47,12.7702]
[1727184282553,3.3896,147.5,147.48,3.3901]
[1727184283856,3.3895,147.51,147.49,3.3898]
[1727184292867,9.38,147.53,147.48,9.38]
[1727184293073,9.38,147.51,147.46,9.38]
[1727184293477,3.39,147.49,147.46,12.7703]
[1727184293977,3.39,147.49,147.46,9.38]
[1727184294882,3.39,147.49,147.47,3.3903]
[1727184295474,9.38,147.51,147.46,9.38]
[1727184295475,9.38,147.5,147.46,12.7704]
[1727184296280,3.3901,147.49,147.46,12.7704]
[1727184298675,3.3901,147.48,147.46,12.7704]
[1727184300173,9.38,147.49,147.45,12.7706]
[1727184300373,9.38,147.49,147.37,6.7851]
[1727184300374,9.38,147.46,147.29,3.32066508]
[1727184300579,9.38,147.46,147.26,230.0]
[1727184300580,9.38,147.42,147.37,9.38]
[1727184300888,12.7718,147.41,147.38,3.3922]
[1727184301092,9.38,147.41,147.36,9.38]
[1727184301382,9.38,147.44,147.39,9.38]
[1727184301891,9.38,147.46,147.4,9.38]
[1727184302079,9.38,147.44,147.4,9.38]
[1727184302781,3.3913,147.43,147.4,12.7719]
[1727184302984,3.3913,147.43,147.4,9.38]
[1727184303784,3.3913,147.43,147.41,3.3916]
[1727184305286,12.7711,147.44,147.41,3.3916]
[1727184306893,3.3914,147.43,147.4,3.3919]
[1727184307778,9.38,147.44,147.37,3.39271172]
[1727184307993,9.38,147.44,147.32,97.55995041]
[1727184308294,9.38,147.44,147.39,9.38]
[1727184308602,1.355,147.47,147.41,9.38]
[1727184308789,9.38,147.45,147.41,9.38]
[1727184308991,12.771,147.45,147.42,3.3913]
[1727184309993,9.38,147.44,147.32,90.9248]
[1727184310292,9.38,147.42,147.34,4.93338559]
[1727184310488,9.38,147.42,147.36,9.38]
[1727184310692,3.3917,147.41,147.36,9.38]
[1727184310887,9.38,147.42,147.36,9.38]
[1727184311289,12.7716,147.42,147.39,3.392]
[1727184312693,9.38,147.4,147.32,2.7373]
[1727184312997,9.38,147.38,147.34,9.38]
[1727184313206,9.38,147.38,147.36,3.3927]
[1727184314195,9.38,147.37,147.33,9.38]
[1727184314996,9.38,147.39,147.34,9.38]
[1727184315685,12.7724,147.39,147.35,3.3929]
[1727184316192,12.7724,147.39,147.36,3.3928]
[1727184316193,3.3924,147.39,147.36,3.3928]
[1727184316394,1.355,147.47,147.36,3.3928]
[1727184316395,9.38,147.41,147.36,9.38]
[1727184316695,9.38,147.42,147.38,9.38]
[1727184317995,3.3918,147.41,147.39,3.3921]
[1727184320795,3.3918,147.41,147.38,12.7723]
[1727184326802,12.7718,147.41,147.38,12.7723]
[1727184330104,12.7718,147.41,147.38,3.3923]
[1727184330900,3.3919,147.4,147.38,3.3923]
[1727184331100,9.38,147.4,147.35,9.38]
[1727184331402,9.38,147.37,147.32,1.3939]
[1727184331605,9.38,147.37,147.32,9.38]
[1727184331806,9.38,147.37,147.35,3.3929]
[1727184335110,12.7725,147.38,147.35,3.3929]
[1727184336798,9.38,147.38,147.36,3.3928]
[1727184337213,9.38,147.39,147.35,9.38]
[1727184338913,9.38,147.39,147.37,3.3925]
[1727184340408,9.38,147.39,147.38,3.3924]
[1727184342003,9.38,147.39,147.37,3.3925]
[1727184342202,9.38,147.38,147.33,9.38]
[1727184342399,9.38,147.37,147.33,9.38]
[1727184342603,9.38,147.37,147.36,3.3928]
[1727184342803,9.38,147.37,147.31,1.4085]
[1727184342804,9.38,147.39,147.34,9.38]
[1727184343305,9.38,147.4,147.35,9.38]
[1727184344406,3.392,147.4,147.37,3.3924]
[1727184344612,9.38,147.39,147.37,3.3924]
[1727184352314,1.3789,147.43,147.37,9.38]
[1727184352716,9.38,147.42,147.37,9.38]
[1727184353230,12.7716,147.42,147.39,3.392]
[1727184353818,12.7717,147.41,147.39,3.392]
[1727184354027,9.38,147.41,147.38,3.3923]
[1727184354423,12.7721,147.4,147.36,9.38]
[1727184354718,12.7721,147.4,147.37,3.3924]
[1727184355625,9.38,147.4,147.38,3.3923]
[1727184355824,12.7718,147.41,147.38,3.3923]
[1727184357018,12.772,147.4,147.38,3.3923]
[1727184357323,12.772,147.4,147.37,3.3925]
[1727184357622,3.3925,147.38,147.35,3.3928]
[1727184358021,3.3925,147.38,147.33,9.38]
[1727184358327,12.7722,147.39,147.36,3.3927]
[1727184360423,9.38,147.39,147.37,3.3926]
[1727184360623,12.772,147.4,147.37,3.3926]
[1727184361025,3.3918,147.41,147.38,3.3923]
[1727184361221,9.38,147.4,147.38,3.3923]
[1727184361827,9.38,147.4,147.36,9.38]
[1727184362032,9.38,147.39,147.34,9.38]
[1727184362421,12.7724,147.39,147.36,3.3927]
[1727184363334,9.38,147.37,147.31,10.7885]
[1727184363526,9.38,147.36,147.31,10.7885]
[1727184364736,12.7727,147.37,147.33,9.38]
[1727184364931,12.7727,147.37,147.33,14.33847488]
[1727184365429,12.7727,147.37,147.34,3.3932]
[1727184365936,12.7727,147.37,147.33,14.33847488]
[1727184366936,12.7727,147.37,147.35,3.3931]
[1727184367232,3.3929,147.36,147.32,7.93355982]
[1727184367538,9.38,147.34,147.31,1.4085]
[1727184367739,9.38,147.32,147.27,12.73913452]
[1727184367938,9.38,147.32,147.28,4.96445156]
[1727184368141,9.38,147.32,147.27,12.73913452]
[1727184368330,9.38,147.32,147.28,4.96462225]
[1727184368640,12.7739,147.32,147.28,4.96462225]
[1727184369039,12.7739,147.32,147.27,9.38]
[1727184369533,9.38,147.32,147.3,3.3942]
[1727184371047,12.7738,147.32,147.3,3.3942]
[1727184371245,9.38,147.31,147.3,3.3942]
[1727184371948,12.774,147.31,147.29,3.3943]
[1727184372137,4.1586,147.36,147.27,4.96165454]
[1727184372138,9.38,147.3,147.27,4.96165454]
[1727184372344,9.38,147.28,147.22,6.67586148]
[1727184372543,9.38,147.23,147.22,12.90327358]
[1727184372853,9.38,147.23,147.19,6.67218607]
[1727184373153,9.38,147.22,147.18,7.93658495]
[1727184373542,9.38,147.22,147.17,81.46]
[1727184373741,9.38,147.22,147.19,3.3966]
[1727184374342,9.38,147.2,147.19,3.3966]
[1727184375446,9.38,147.22,147.2,3.3964]
[1727184378351,12.7761,147.22,147.19,3.3967]
[1727184379653,9.38,147.22,147.19,3.3967]
[1727184379858,9.38,147.22,147.17,81.46]
[1727184380355,9.38,147.2,147.19,3.3966]
[1727184380552,9.38,147.2,147.09,3.41896024]
[1727184380756,3.3978,147.15,147.11,3.3984]
[1727184380960,9.38,147.13,147.07,9.38]
[1727184381161,3.42711518,147.17,147.06,12.56165762]
[1727184381458,1.3364,147.19,147.06,9.20453904]
[1727184382059,9.38,147.12,147.09,3.3989]
[1727184382356,9.38,147.12,147.08,9.38]
[1727184382563,9.38,147.14,147.1,3.3987]
[1727184382757,9.38,147.14,147.09,9.38]
[1727184383057,9.38,147.13,147.08,9.38]
[1727184383260,12.7782,147.13,147.09,3.399]
[1727184383464,12.7782,147.13,147.09,12.779]
[1727184384057,3.3982,147.13,147.09,12.779]
[1727184385168,9.38,147.14,147.06,1.4061]
[1727184385169,3.3979,147.14,147.1,9.38]
[1727184385964,3.40303277,147.18,147.11,9.38]
[1727184386152,9.38,147.18,147.13,9.38]
[1727184386465,9.38,147.17,147.13,12.778]
[1727184387053,9.38,147.17,147.13,3.398]
[1727184387570,3.3975,147.16,147.13,3.398]
[1727184389263,9.38,147.16,147.13,3.398]
[1727184390357,2.7782,147.21,147.15,9.38]
[1727184390557,9.38,147.2,147.15,9.38]
[1727184391064,12.7768,147.19,147.16,3.3973]
[1727184391264,9.38,147.19,147.06,1.4061]
[1727184391567,9.38,147.19,147.14,9.38]
[1727184392363,12.7768,147.19,147.14,9.38]
[1727184392567,9.38,147.19,147.14,9.38]
[1727184392763,12.7768,147.19,147.16,3.3973]
[1727184393168,12.7768,147.19,147.14,9.38]
[1727184393863,9.38,147.18,147.14,9.38]
[1727184394467,9.38,147.18,147.16,3.3973]
[1727184395273,9.38,147.17,147.07,6.7988]
[1727184395566,9.38,147.17,147.13,9.38]
[1727184396269,9.38,147.17,147.15,3.3975]
[1727184396860,9.38,147.16,147.14,3.3979]
[1727184397062,9.38,147.16,147.12,9.38]
[1727184397271,9.38,147.16,147.11,9.38]
[1727184397770,12.7776,147.16,147.13,3.398]
[1727184400366,9.38,147.14,147.06,1.4061]
[1727184400568,9.38,147.12,147.08,9.38]
[1727184401767,9.38,147.12,147.06,1.4061]
[1727184401768,9.38,147.11,147.09,3.399]
[1727184402371,9.38,147.1,147.06,1.4061]
[1727184402974,12.779,147.1,147.08,3.3993]
[1727184403174,9.38,147.1,147.08,3.3993]
[1727184404467,12.7785,147.12,147.07,9.38]
[1727184404666,9.38,147.14,147.09,9.38]
[1727184404868,1.3826,147.16,147.1,9.38]
[1727184405070,9.38,147.15,147.1,9.38]
[1727184405274,3.398,147.14,147.1,9.38]
[1727184405772,12.7782,147.13,147.06,1.4061]
[1727184406076,12.7782,147.13,147.08,9.38]
[1727184406376,12.7782,147.13,147.1,3.3987]
[1727184406575,9.38,147.13,147.09,9.38]
[1727184407078,9.38,147.14,147.09,9.38]
[1727184407671,12.778,147.14,147.11,3.3984]
[1727184409872,12.778,147.14,147.12,3.3984]
[1727184410068,1.3578,147.18,147.12,9.38]
[1727184410274,9.38,147.16,147.12,12.7783]
[1727184410573,3.3979,147.15,147.12,12.7783]
[1727184410883,9.38,147.15,147.11,3.3985]
[1727184411084,9.38,147.14,147.09,9.38]
[1727184411268,4.83665216,147.18,147.09,9.38]
[1727184411573,9.38,147.14,147.09,9.38]
[1727184412174,3.3981,147.13,147.11,3.3985]
[1727184413480,9.38,147.12,147.06,1.4061]
[1727184413675,9.38,147.12,147.07,9.38]
[1727184413868,12.7785,147.12,147.1,3.3988]
[1727184415382,12.7785,147.12,147.09,3.3989]
[1727184415778,9.38,147.11,147.06,1.4061]
[1727184416084,9.38,147.1,147.07,3.3994]
[1727184416284,12.779,147.1,147.07,3.3994]
[1727184416678,12.779,147.1,147.08,3.3992]
[1727184416871,12.779,147.1,147.06,9.38]
[1727184417375,9.38,147.1,147.04,16.81110765]
[1727184417777,9.38,147.1,147.05,9.38]
[1727184417977,12.779,147.1,147.07,3.3994]
[1727184418177,9.38,147.11,147.06,9.38]
[1727184418370,12.7788,147.11,147.07,3.3994]
[1727184419173,12.7788,147.11,147.08,3.3991]
[1727184421087,9.38,147.09,147.04,13.4721]
[1727184421697,12.7792,147.09,147.07,3.3995]
[1727184421988,9.38,147.1,147.05,9.38]
[1727184422279,12.7789,147.1,147.05,9.38]
[1727184422788,12.7789,147.1,147.07,3.3994]
[1727184423277,3.3991,147.09,147.07,3.3994]
[1727184424084,12.7791,147.09,147.07,3.3994]
[1727184424588,9.38,147.09,147.06,3.3997]
[1727184425077,9.38,147.07,147.04,1.3644]
[1727184425678,9.38,147.07,147.01,92.29130259]
[1727184425875,9.38,147.07,146.99,1.4357]
[1727184426079,9.38,147.07,147.02,9.38]
[1727184426380,9.38,147.07,147.05,3.3998]
[1727184426681,3.3995,147.08,146.99,1.4357]
[1727184426682,4.83665216,147.18,147.06,9.38]
[1727184426882,9.38,147.15,147.1,9.38]
[1727184427285,3.3973,147.17,147.13,3.398]
[1727184427482,12.7773,147.17,147.13,3.398]
[1727184427681,9.38,147.17,147.11,9.38]
[1727184427981,3.3975,147.16,147.11,9.38]
[1727184428587,3.3975,147.16,147.12,9.38]
[1727184429386,3.3975,147.16,147.12,3.3982]
[1727184430285,3.3975,147.16,147.11,9.38]
[1727184430286,9.38,147.15,147.11,3.3985]
[1727184430479,9.38,147.14,147.11,3.3985]
[1727184430984,12.778,147.14,147.11,3.3985]
[1727184431377,9.38,147.15,147.12,3.3984]
[1727184431785,12.7778,147.15,147.12,3.3984]
[1727184432490,3.3978,147.15,147.12,3.3984]